bitfinex-derivatives/quotes_ETHF0:USTF0_20250331
["timestamp","ask_amount","ask_price","bid_price","bid_amount"]
[1743430765191,1.09626,1824.7,1824.6,0.1335]
[1743430765494,4.30406,1824.7,1824.6,0.1335]
[1743430765690,3.2078,1824.7,1824.6,0.1335]
[1743430766099,4.30406,1824.7,1824.6,0.1335]
[1743430767295,3.2078,1824.7,1824.6,0.1335]
[1743430767497,4.30406,1824.7,1824.6,0.1335]
[1743430768495,11.79006,1824.7,1824.6,0.1335]
[1743430768696,12.53736,1824.7,1824.6,0.1335]
[1743430769092,1.09638,1824.5,1824.4,0.747]
[1743430769293,1.0965,1824.3,1824.2,0.00820771]
[1743430769495,2.74148,1824.2,1823.7,1.3869]
[1743430769797,3.2078,1823.9,1823.8,1.0968]
[1743430770002,3.2078,1823.9,1823.7,1.3869]
[1743430770298,3.2078,1823.9,1823.8,1.0968]
[1743430770497,3.2078,1823.9,1823.7,1.3869]
[1743430770498,3.2078,1823.9,1823.7,2.48372]
[1743430770693,3.2078,1823.9,1823.8,1.0968]
[1743430771593,1.10490771,1824.0,1823.8,1.09678]
[1743430771795,1.10490771,1824.0,1823.9,1.4401]
[1743430771998,4.31270771,1824.0,1823.9,1.4401]
[1743430772403,3.21600771,1824.0,1823.9,2.53684]
[1743430772604,4.31270771,1824.0,1823.7,0.00820771]
[1743430772797,1.09676,1823.9,1823.7,0.00820771]
[1743430773003,1.0968,1823.8,1823.7,0.00820771]
[1743430773408,2.58789,1823.9,1823.7,1.10506771]
[1743430773608,2.58789,1823.9,1823.7,2.54516771]
[1743430773804,0.00820771,1824.0,1823.9,1.09674]
[1743430774497,0.00820771,1824.0,1823.7,1.44830771]
[1743430774701,1.10490771,1824.0,1823.7,1.44830771]
[1743430775003,0.00820771,1824.0,1823.9,1.09674]
[1743430775701,1.10491771,1824.0,1823.8,1.83587]
[1743430775901,0.00820771,1824.0,1823.9,2.54364]
[1743430776297,0.00820771,1824.0,1823.9,5.04364]
[1743430776509,0.7473,1824.7,1824.1,2.74152]
[1743430776510,3.2078,1824.7,1824.1,2.74152]
[1743430776700,1.09644,1824.4,1824.2,1.4469]
[1743430776896,1.0965,1824.3,1824.2,1.4469]
[1743430777096,1.09647,1824.4,1824.2,2.54344]
[1743430777301,1.0965,1824.3,1824.2,1.4469]
[1743430777702,1.10469771,1824.4,1824.2,2.54345]
[1743430778006,0.00820771,1824.4,1824.3,1.0965]
[1743430778212,2.74936771,1824.4,1823.7,3.21600771]
[1743430778510,3.2078,1824.3,1823.8,2.74202]
[1743430778807,1.09664,1824.1,1824.0,1.09667]
[1743430779009,1.09656,1824.2,1824.0,1.09664]
[1743430779303,1.09654,1824.3,1823.9,2.74185]
[1743430779501,3.2078,1824.3,1824.0,1.3882]
[1743430779706,1.09662,1824.1,1824.0,2.48486]
[1743430779911,3.2078,1824.3,1824.0,1.3882]
[1743430780097,1.09662,1824.1,1824.0,1.3882]
[1743430780606,1.0966,1824.2,1824.0,1.3882]
[1743430781109,2.74202,1823.8,1823.3,4.207]
[1743430781307,2.74202,1823.8,1823.3,5.3041]
[1743430781308,3.2078,1823.4,1823.3,5.3041]
[1743430781502,1.09703,1823.5,1823.3,5.3041]
[1743430781503,3.2078,1823.7,1823.4,2.74262]
[1743430781709,1.09667,1824.1,1823.6,2.74232]
[1743430781902,3.2078,1824.0,1823.4,2.74262]
[1743430782100,4.3045,1824.0,1823.7,0.00820771]
[1743430782405,4.3046,1823.8,1823.7,0.00820771]
[1743430782800,3.2078,1823.8,1823.7,2.58416771]
[1743430785306,4.3046,1823.8,1823.7,1.48730771]
[1743430785514,5.6711,1823.8,1823.7,1.48730771]
[1743430786012,4.5743,1823.8,1823.7,1.48730771]
[1743430786318,3.2078,1823.8,1823.7,2.58416771]
[1743430786711,4.3046,1823.8,1823.7,2.58416771]
[1743430787214,4.3046,1823.8,1823.7,1.48730771]
[1743430787920,3.2078,1823.8,1823.7,2.58416771]
[1743430788110,4.3046,1823.8,1823.7,2.58416771]
[1743430788311,4.3046,1823.8,1823.7,1.48730771]
[1743430789518,3.2078,1823.8,1823.7,2.58416771]
[1743430789712,4.30453,1824.0,1823.9,1.09674]
[1743430790114,1.09674,1823.9,1823.8,1.0968]
[1743430790418,3.2078,1824.0,1823.7,1.48730771]
[1743430790816,1.09675,1823.9,1823.8,1.09676]
[1743430791019,1.09677,1823.9,1823.8,1.09678]
[1743430791715,1.0968,1823.8,1823.7,1.48730771]
[1743430791921,5.7568,1823.8,1823.7,0.00820771]
[1743430793920,8.2568,1823.8,1823.7,0.00820771]
[1743430794118,5.7568,1823.8,1823.7,0.00820771]
[1743430794320,3.2078,1823.8,1823.7,0.00820771]
[1743430794519,4.3046,1823.8,1823.7,1.10506771]
[1743430794915,4.3046,1823.8,1823.7,0.00820771]
[1743430795122,4.3046,1823.8,1823.7,1.42760771]
[1743430796924,4.3046,1823.8,1823.7,0.00820771]
[1743430797713,3.2078,1823.8,1823.7,0.00820771]
[1743430797918,4.3046,1823.8,1823.7,0.00820771]
[1743430798411,4.3046,1823.8,1823.7,1.52430771]
[1743430799025,4.3046,1823.8,1823.7,2.62116771]
[1743430799226,4.3046,1823.8,1823.7,1.52430771]
[1743430800522,5.77952,1824.0,1823.7,1.52430771]
[1743430800832,3.2078,1824.2,1824.1,1.09662]
[1743430801020,3.2078,1824.2,1823.8,2.742]
[1743430801021,3.2078,1824.2,1823.9,2.1848]
[1743430801220,1.09668,1824.0,1823.9,2.1848]
[1743430801619,1.09663,1824.1,1824.0,1.09668]
[1743430801826,4.30438,1824.2,1824.1,1.09662]
[1743430802019,4.3044,1824.2,1824.1,1.09662]
[1743430802224,3.2078,1824.2,1824.1,1.09662]
[1743430804016,1.09662,1824.1,1824.0,1.4282]
[1743430804227,3.2078,1824.2,1824.0,1.4282]
[1743430804434,5.68320771,1824.4,1824.0,4.16986]
[1743430804632,4.31250771,1824.4,1824.3,1.0965]
[1743430805128,4.31244771,1824.4,1824.2,1.09652]
[1743430805430,4.31250771,1824.4,1824.2,2.52512]
[1743430805634,1.0967,1824.0,1823.8,0.7432]
[1743430805833,1.0968,1823.8,1823.7,0.00820771]
[1743430806126,3.2078,1823.9,1823.8,1.0968]
[1743430806328,3.2078,1823.9,1823.8,2.5254]
[1743430806730,4.7098,1824.2,1823.8,1.4286]
[1743430806925,1.09668,1824.0,1823.9,1.4286]
[1743430807120,5.80642,1824.2,1824.0,1.09665]
[1743430807333,5.80642,1824.2,1824.1,1.4286]
[1743430807835,2.59862,1824.2,1824.1,1.4286]
[1743430808036,5.80642,1824.2,1824.1,1.4286]
[1743430808223,2.59862,1824.2,1824.1,1.4286]
[1743430808429,5.80642,1824.2,1824.1,1.4286]
[1743430808631,1.09655,1824.3,1824.1,1.4286]
[1743430808932,1.09654,1824.3,1824.1,2.5252]
[1743430809140,1.09656,1824.2,1824.1,2.5252]
[1743430809431,4.30436,1824.2,1824.1,1.4286]
[1743430809836,4.31246771,1824.4,1824.1,1.4286]
[1743430810038,0.00820771,1824.4,1824.3,1.0965]
[1743430810634,7.55448,1824.9,1824.3,2.5]
[1743430810635,3.2078,1824.8,1824.3,2.5]
[1743430810937,4.30403,1824.8,1824.6,1.09626]
[1743430811133,1.09619,1824.9,1824.5,1.09638]
[1743430811334,3.2078,1825.0,1824.9,1.09614]
[1743430811538,1.4676,1825.1,1824.9,1.09614]
[1743430811733,2.56367,1825.1,1825.0,1.4737]
[1743430812532,3.21600771,1825.2,1825.1,1.09602]
[1743430812936,0.00820771,1825.2,1825.1,1.09602]
[1743430813133,4.5933,1825.7,1825.6,1.09572]
[1743430813338,3.2078,1825.7,1825.6,1.09572]
[1743430813644,3.2078,1825.9,1825.6,1.09568]
[1743430813837,3.2078,1825.9,1825.7,2.56936]
[1743430814034,3.2078,1825.9,1825.7,1.4737]
[1743430814235,0.00820771,1826.0,1825.7,1.4737]
[1743430814431,0.00820771,1826.0,1825.9,1.0955]
[1743430814841,0.00820771,1826.0,1825.9,1.09554]
[1743430816442,3.2078,1826.1,1826.0,1.09548]
[1743430817337,3.2078,1826.1,1825.8,0.00820771]
[1743430817537,3.2078,1826.1,1825.8,4.78420771]
[1743430817746,3.2078,1826.1,1826.0,1.09548]
[1743430817937,3.2078,1826.1,1825.8,4.78420771]
[1743430818246,0.00820771,1826.2,1826.1,1.09542]
[1743430818445,0.00820771,1826.2,1825.8,4.78420771]
[1743430818641,0.00820771,1826.2,1826.1,1.09542]
[1743430818845,4.30296,1826.6,1826.3,1.09528]
[1743430819040,3.2078,1826.6,1826.1,2.73856]
[1743430819339,3.2078,1826.4,1826.2,6.55674]
[1743430819538,1.5152,1826.5,1826.3,1.0953]
[1743430820136,3.2078,1826.4,1826.2,5.4614]
[1743430820343,3.2078,1826.4,1826.3,1.0953]
[1743430820845,3.2078,1826.4,1826.2,0.6854]
[1743430821141,4.30309,1826.4,1826.2,0.6854]
[1743430821447,4.30306,1826.4,1826.2,1.78075]
[1743430821744,4.30306,1826.4,1826.2,0.6854]
[1743430822141,1.0953,1826.3,1826.1,1.0954]
[1743430822342,2.5102,1826.3,1826.1,1.0954]
[1743430822542,1.4149,1826.3,1826.2,1.09536]
[1743430822735,1.0952,1826.5,1826.3,1.09528]
[1743430822940,4.30305,1826.4,1826.2,1.09534]
[1743430823143,1.09531,1826.3,1826.1,1.09538]
[1743430823349,4.30319,1826.2,1826.0,1.09548]
[1743430823546,5.68709,1826.2,1826.0,1.09548]
[1743430823849,5.68706,1826.2,1826.0,1.09544]
[1743430824240,5.68709,1826.2,1826.0,1.09547]
[1743430824440,4.5917,1826.2,1825.9,0.7317]
[1743430824648,1.09548,1826.0,1825.8,1.79067771]
[1743430824842,4.5917,1826.2,1825.8,0.69510771]
[1743430825053,0.00820771,1826.6,1825.9,2.73886]
[1743430825238,4.303,1826.5,1826.0,8.20674]
[1743430825443,4.30313,1826.3,1826.1,1.09541]
[1743430825844,3.2078,1826.3,1826.0,5.4681]
[1743430826043,4.3031,1826.3,1826.1,1.09539]
[1743430826238,4.3031,1826.3,1826.1,1.0954]
[1743430826239,3.2078,1826.3,1826.1,1.0954]
[1743430826441,3.2078,1826.5,1826.4,1.09524]
[1743430826845,0.00820771,1826.6,1826.5,1.09518]
[1743430828048,1.416,1827.1,1827.0,1.09488]
[1743430828251,1.416,1827.1,1826.5,5.06068]
[1743430828443,3.2078,1827.0,1826.9,1.09494]
[1743430828843,3.2078,1827.0,1826.7,2.73761]
[1743430828844,1.416,1827.1,1827.0,1.09488]
[1743430829247,1.416,1827.1,1826.9,1.10310771]
[1743430829446,1.416,1827.1,1827.0,1.09488]
[1743430829643,1.416,1827.1,1826.9,0.00820771]
[1743430829947,4.30268,1827.0,1826.9,0.00820771]
[1743430830145,3.2078,1827.0,1826.9,0.00820771]
[1743430830345,3.2078,1827.0,1826.9,1.10314771]
[1743430830553,4.30268,1827.0,1826.9,0.00820771]
[1743430830749,4.643,1827.0,1826.9,1.10314771]
[1743430830943,5.73788,1827.0,1826.9,0.00820771]
[1743430832755,8.23788,1827.0,1826.9,0.00820771]
[1743430832945,2.7377,1826.7,1825.8,5.94667]
[1743430833147,1.09542,1826.1,1826.0,1.78663]
[1743430833353,3.2078,1826.2,1826.1,1.09542]
[1743430833550,3.2078,1826.2,1825.8,2.73901]
[1743430833757,3.2078,1826.2,1826.1,1.09542]
[1743430833953,4.30316,1826.2,1826.0,1.09544]
[1743430834256,1.09547,1826.1,1826.0,0.00820771]
[1743430834454,2.55507,1826.1,1826.0,0.00820771]
[1743430834963,2.55507,1826.1,1826.0,1.10368771]
[1743430835261,2.55507,1826.1,1826.0,0.00820771]
[1743430835556,4.30319,1826.2,1826.0,1.10368771]
[1743430835759,5.77339,1826.2,1826.1,1.3698]
[1743430836460,1.09542,1826.1,1826.0,0.00820771]
[1743430836851,1.09542,1826.1,1826.0,1.37800771]
[1743430837057,1.09542,1826.1,1826.0,0.00820771]
[1743430837255,2.56562,1826.1,1826.0,0.00820771]
[1743430838657,1.0957,1825.7,1825.5,1.78696]
[1743430838851,4.30356,1825.6,1825.4,1.09582]
[1743430839251,4.30356,1825.6,1825.5,1.4564]
[1743430839457,3.2078,1825.6,1825.5,1.4564]
[1743430839662,1.0957,1825.7,1825.5,1.4564]
[1743430839855,1.3934,1825.9,1825.5,1.4564]
[1743430839856,4.30352,1825.6,1825.5,1.4564]
[1743430840160,2.48911,1825.7,1825.5,1.4564]
[1743430840360,1.09572,1825.6,1825.5,1.4564]
[1743430840558,1.3934,1825.7,1825.5,2.55217]
[1743430840757,3.2078,1825.8,1825.6,1.09572]
[1743430841059,3.2078,1825.8,1825.7,2.55206]
[1743430841259,4.30333,1826.0,1825.8,1.09558]
[1743430841456,3.2078,1826.0,1825.9,1.3874]
[1743430841662,4.705,1826.0,1825.6,1.0957]
[1743430841859,3.2078,1825.8,1825.5,1.3874]
[1743430842065,3.2078,1825.6,1825.5,2.48317]
[1743430842257,3.2078,1825.6,1825.5,1.3874]
[1743430842457,4.705,1825.6,1825.5,1.3874]
[1743430842657,5.80072,1825.6,1825.5,1.3874]
[1743430843666,4.705,1825.6,1825.5,1.3874]
[1743430843963,3.2078,1825.6,1825.5,2.48318]
[1743430844560,3.2078,1825.8,1825.5,1.3874]
[1743430844864,3.2078,1825.8,1825.7,1.09566]
[1743430845161,3.2078,1826.0,1825.9,1.09554]
[1743430845360,1.09556,1825.9,1825.7,1.09564]
[1743430845664,4.30332,1826.0,1825.8,1.0956]
[1743430845865,1.0956,1825.8,1825.7,1.4767]
[1743430846062,4.3034,1825.8,1825.7,1.4767]
[1743430846962,3.2078,1825.8,1825.7,1.4767]
[1743430847162,3.2078,1825.8,1825.7,2.57236]
[1743430847558,4.3034,1825.8,1825.7,1.4767]
[1743430847864,5.8133,1825.8,1825.7,1.4767]
[1743430848257,3.2078,1826.0,1825.7,1.4767]
[1743430848460,4.30342,1825.8,1825.6,1.09567]
[1743430848663,4.30344,1825.8,1825.6,1.09571]
[1743430848867,4.30344,1825.8,1825.7,1.3721]
[1743430849067,3.2078,1825.8,1825.5,1.09578]
[1743430849270,4.30352,1825.6,1825.5,1.3721]
[1743430849465,4.30352,1825.6,1825.5,2.46788]
[1743430849663,4.30352,1825.6,1825.5,1.3721]
[1743430849970,4.30352,1825.6,1825.4,1.10399771]
[1743430849971,4.30352,1825.6,1825.4,1.10401771]
[1743430850165,4.30352,1825.6,1825.4,0.00820771]
[1743430850166,2.60568,1825.5,1825.4,0.00820771]
[1743430851173,2.60568,1825.5,1825.4,1.50020771]
[1743430851472,1.5099,1825.5,1825.4,2.59604771]
[1743430851672,2.60568,1825.5,1825.4,1.50020771]
[1743430852367,3.2078,1825.6,1825.5,1.09578]
[1743430852566,1.4207,1825.7,1825.6,1.09572]
[1743430852766,3.2078,1825.8,1825.6,1.09569]
[1743430852970,4.30343,1825.8,1825.7,1.492]
[1743430853272,3.2078,1825.8,1825.7,2.58766]
[1743430853472,4.3034,1825.8,1825.7,1.492]
[1743430853676,4.3034,1825.8,1825.7,2.58766]
[1743430853862,4.3034,1825.8,1825.7,1.492]
[1743430854169,4.3034,1825.8,1825.5,1.09576]
[1743430854170,1.09572,1825.6,1825.5,1.09576]
[1743430854369,4.30352,1825.6,1825.5,2.54728]
[1743430854567,4.30352,1825.6,1825.5,1.4515]
[1743430854973,1.09572,1825.6,1825.5,1.4515]
[1743430855175,4.30352,1825.6,1825.5,1.4515]
[1743430855571,1.4726,1825.7,1825.5,2.54728]
[1743430855869,1.09561,1825.8,1825.5,4.19094]
[1743430856067,3.2078,1825.8,1825.7,1.09562]
[1743430856272,4.3034,1825.8,1825.7,1.09562]
[1743430856472,3.2078,1825.8,1825.7,1.09562]
[1743430856674,4.3033,1826.0,1825.9,1.09554]
[1743430856878,3.2078,1826.0,1825.8,1.3961]
[1743430857172,3.2078,1826.0,1825.9,1.09554]
[1743430857877,3.2078,1826.0,1825.9,2.49164]
[1743430858081,4.6867,1826.2,1826.1,1.09542]
[1743430858377,5.78206,1826.2,1826.1,1.09542]
[1743430858574,4.6867,1826.2,1826.1,1.09542]
[1743430859177,3.2078,1826.2,1826.1,1.09542]
[1743430860072,0.00820771,1826.3,1826.2,1.09536]
[1743430860780,3.2078,1826.7,1826.6,1.09512]
[1743430861672,4.30278,1826.9,1826.7,1.09506]
[1743430861977,4.771,1827.1,1826.3,8.95616]
[1743430861978,4.6457,1827.0,1826.9,1.09494]
[1743430862283,0.00820771,1827.0,1826.9,1.09494]
[1743430862883,0.00820771,1827.0,1826.9,2.55744]
[1743430863684,3.2078,1827.4,1827.3,1.0947]
[1743430864685,1.4452,1827.7,1827.5,1.09455]
[1743430864882,1.4452,1827.7,1827.2,4.19932]
[1743430865086,3.2078,1827.6,1827.5,1.09456]
[1743430865383,3.21319132,1827.6,1827.5,1.09456]
[1743430865781,0.00539132,1827.6,1827.5,1.09456]
[1743430867787,0.00539132,1827.6,1827.5,4.30236]
[1743430867989,3.2078,1828.0,1827.9,1.09434]
[1743430868987,3.2078,1828.0,1827.9,5.86134]
[1743430869182,3.2078,1828.0,1827.9,6.61284]
[1743430869383,3.2078,1828.0,1827.8,1.4449]
[1743430869883,1.09434,1827.9,1827.8,1.4449]
[1743430870087,2.49034,1827.9,1827.8,1.4449]
[1743430870384,1.396,1827.9,1827.8,2.5393]
[1743430870583,3.2078,1828.0,1827.9,1.09434]
[1743430870791,3.2078,1828.0,1827.9,2.60184]
[1743430871287,3.2078,1828.0,1827.9,1.5075]
[1743430871288,4.30208,1828.0,1827.9,1.5075]
[1743430871589,5.69808,1828.0,1827.8,1.09437]
[1743430871789,4.6038,1828.0,1827.8,1.0944]
[1743430871991,5.69808,1828.0,1827.9,1.4352]
[1743430872184,3.2078,1828.0,1827.9,2.52954]
[1743430872390,4.6555,1828.2,1828.1,1.09422]
[1743430872790,3.2078,1828.2,1828.1,1.09422]
[1743430873390,3.2078,1828.2,1828.0,3.75206045]
[1743430873587,3.2078,1828.2,1828.1,2.52942]
[1743430873884,11.4497,1828.6,1828.1,2.52942]
[1743430873885,3.2078,1828.4,1828.3,1.0941]
[1743430874480,3.2078,1828.4,1828.3,2.5293]
[1743430874795,26.45520598,1828.7,1828.6,1.09392]
[1743430874986,26.45520598,1828.7,1828.5,4.764]
[1743430875187,26.45520598,1828.7,1828.6,1.09392]
[1743430875693,23.24740598,1828.7,1828.6,1.09392]
[1743430875882,23.24740598,1828.7,1828.6,4.30172]
[1743430876081,16.54662814,1828.7,1828.6,6.80172]
[1743430876283,13.06875814,1828.7,1828.6,11.56572]
[1743430876690,3.2078,1829.2,1829.1,1.09363]
[1743430877198,3.2078,1829.2,1828.9,4.762]
[1743430877392,3.2078,1829.2,1829.0,1.09368]
[1743430877597,1.09369,1829.0,1828.8,5.85575]
[1743430877795,4.30152,1829.0,1828.7,4.762]
[1743430878094,2.73467,1828.7,1828.2,0.00820771]
[1743430878290,4.30182,1828.5,1828.3,1.0941]
[1743430878491,1.09406,1828.4,1828.2,1.10232771]
[1743430878693,4.3019,1828.3,1828.2,0.00820771]
[1743430880391,4.747882,1828.3,1828.2,0.00820771]
[1743430880596,1.09437,1827.9,1827.7,5.85542]
[1743430880796,3.2078,1827.9,1827.6,1.0945]
[1743430881098,3.2078,1827.9,1827.5,4.761]
[1743430881293,1.09442,1827.8,1827.6,1.0945]
[1743430881597,4.31037771,1827.9,1827.7,1.09445]
[1743430881798,4.31037771,1827.9,1827.7,1.09444]
[1743430881999,1.09443,1827.8,1827.6,1.09449]
[1743430882199,3.21600771,1827.9,1827.7,1.09446]
[1743430882200,4.31038771,1827.9,1827.7,1.09446]
[1743430882900,1.09441,1827.8,1827.6,1.09449]
[1743430883095,4.31038771,1827.9,1827.7,1.09446]
[1743430883694,1.09443,1827.8,1827.6,1.09449]
[1743430883994,3.21600771,1827.9,1827.7,1.09445]
[1743430884308,4.31038771,1827.9,1827.7,1.09442]
[1743430884599,1.09443,1827.8,1827.6,1.09448]
[1743430884995,3.2078,1827.7,1827.5,0.00820771]
[1743430885209,1.09452,1827.6,1827.5,0.00820771]
[1743430885592,9.07036771,1827.9,1827.5,0.00820771]
[1743430885803,7.97600771,1827.9,1827.8,1.0944]
[1743430886101,3.21600771,1827.9,1827.8,1.0944]
[1743430886305,3.2078,1828.1,1828.0,1.09428]
[1743430886999,3.2078,1828.1,1827.6,0.6829]
[1743430887199,3.2078,1828.1,1827.5,0.00820771]
[1743430887200,1.09452,1827.6,1827.5,0.00820771]
[1743430887401,3.2078,1827.6,1827.5,1.10278771]
[1743430888301,3.9282,1828.0,1827.5,1.10278771]
[1743430888498,4.30222,1827.8,1827.6,2.55147]
[1743430888698,3.2078,1827.8,1827.7,1.09446]
[1743430889307,4.3022,1827.8,1827.7,1.09446]
[1743430889504,3.2078,1827.8,1827.5,0.00820771]
[1743430889810,4.30232,1827.6,1827.5,0.00820771]
[1743430890502,5.7078,1827.6,1827.5,0.00820771]
[1743430890703,1.09487,1827.1,1826.8,2.53107]
[1743430890911,3.2078,1827.0,1826.7,8.967]
[1743430891117,1.09459,1827.5,1826.9,1.09494]
[1743430891308,4.30235,1827.6,1827.0,2.73721]
[1743430891510,3.2078,1827.6,1827.3,1.09469]
[1743430891706,3.2078,1827.6,1827.1,6.1961]
[1743430891910,3.2078,1827.6,1827.1,6.20430771]
[1743430892217,3.2078,1827.6,1827.5,1.09458]
[1743430892521,0.00820771,1827.7,1827.6,1.09452]
[1743430893213,0.00820771,1827.7,1827.6,4.30232]
[1743430893417,0.00820771,1827.7,1827.6,2.59392]
[1743430893619,0.00820771,1827.7,1827.6,6.48632]
[1743430893913,7.71e-06,1827.7,1827.6,8.98632]
[1743430894518,7.71e-06,1827.7,1827.6,11.24532]
[1743430895818,7.71e-06,1827.7,1827.6,13.74532]
[1743430897920,3.2078,1828.8,1828.3,2.7352]
[1743430898117,4.6286,1828.8,1828.4,6.2024]
[1743430898313,5.72243,1828.8,1828.6,1.09391]
[1743430898519,4.6286,1828.8,1828.4,6.2024]
[1743430898718,5.72242,1828.8,1828.6,1.09389]
[1743430899119,5.72242,1828.8,1828.4,6.2024]
[1743430899120,1.09388,1828.7,1828.5,1.10215771]
[1743430899421,4.668,1828.6,1828.5,1.10218771]
[1743430901723,4.668,1828.6,1828.5,0.00820771]
[1743430901923,8.26192,1828.6,1828.5,0.00820771]
[1743430902226,5.76192,1828.6,1828.5,0.00820771]
[1743430902619,1.09415,1828.3,1828.2,1.09416]
[1743430902815,3.2078,1828.3,1828.2,1.09416]
[1743430903021,4.30193,1828.3,1828.1,1.09418]
[1743430903228,4.30193,1828.3,1828.1,1.09422]
[1743430903229,1.4179,1828.2,1828.1,1.09422]
[1743430903527,1.4179,1828.2,1828.0,1.09425]
[1743430903720,3.2078,1828.1,1828.0,1.10248771]
[1743430904620,1.09448,1827.7,1827.5,1.09452]
[1743430904927,1.4179,1827.6,1827.5,1.09458]
[1743430905526,2.51244,1827.6,1827.4,1.09462]
[1743430905722,3.2078,1827.5,1827.1,1.441]
[1743430905924,3.2078,1827.3,1827.2,1.09476]
[1743430906420,3.2078,1827.3,1827.1,2.54401771]
[1743430906730,3.2078,1827.3,1826.7,5.30204]
[1743430906731,4.13162,1827.2,1826.7,5.30204]
[1743430907030,3.2078,1826.8,1826.7,5.30204]
[1743430907923,3.2078,1826.8,1826.7,4.207]
[1743430908123,3.2078,1826.8,1826.7,5.30206]
[1743430908326,4.6024,1826.8,1826.7,5.30206]
[1743430909329,1.3946,1826.8,1826.7,5.30206]
[1743430911532,3.2078,1827.0,1826.9,1.09494]
[1743430911926,3.2078,1827.0,1826.7,6.3816]
[1743430912141,4.3028,1826.8,1826.7,4.207]
[1743430912432,1.09506,1826.7,1826.6,0.00820771]
[1743430912628,2.60086,1826.7,1826.6,0.00820771]
[1743430912827,2.73796,1826.5,1825.8,4.756]
[1743430913138,3.2078,1825.9,1825.8,1.0956]
[1743430913348,3.2078,1825.9,1825.5,1.4798]
[1743430913642,3.2078,1825.7,1824.8,27.6]
[1743430913937,3.2078,1825.3,1825.1,0.00820771]
[1743430914131,0.00820771,1825.4,1825.3,1.0959]
[1743430914330,1.51400771,1825.4,1825.3,1.0959]
[1743430914831,1.51400771,1825.4,1825.1,6.24400771]
[1743430915031,3.2078,1825.3,1825.2,1.09595]
[1743430916837,4.30374,1825.3,1825.1,0.00820771]
[1743430917034,1.09611,1825.0,1824.7,1.09624]
[1743430917231,3.2078,1824.8,1824.7,1.09626]
[1743430918634,3.2078,1825.0,1824.9,1.0961]
[1743430919337,0.00820771,1825.4,1825.1,1.09599]
[1743430919338,3.2078,1825.2,1825.1,1.09599]
[1743430920246,3.2078,1825.2,1824.9,1.4494]
[1743430920542,1.4263,1825.1,1825.0,1.09604]
[1743430921338,3.2078,1825.2,1825.1,1.09602]
[1743430921645,3.21600771,1825.4,1825.0,1.09603]
[1743430921837,4.31188771,1825.4,1825.2,1.09596]
[1743430922038,1.10408771,1825.4,1825.2,1.09594]
[1743430922247,3.21600771,1825.4,1825.0,1.4763]
[1743430922741,0.00820771,1825.4,1825.3,1.0959]
[1743430922942,9.1778,1825.6,1825.4,1.09579]
[1743430922943,7.06574,1825.6,1825.4,1.09579]
[1743430923146,1.09574,1825.6,1825.5,1.09578]
[1743430923338,5.97,1825.7,1825.3,2.7397]
[1743430923540,0.5561,1825.8,1825.7,1.09566]
[1743430923742,1.0957,1825.7,1825.5,1.09575]
[1743430923939,5.97,1825.9,1825.4,30.8078]
[1743430924140,1.09578,1825.5,1825.4,27.60820771]
[1743430924341,4.30358,1825.5,1825.4,0.00820771]
[1743430924538,6.80358,1825.5,1825.4,0.00820771]
[1743430924944,8.81198,1825.5,1825.4,0.00820771]
[1743430925341,8.81198,1825.5,1824.4,2.74099]
[1743430925342,13.6862,1825.5,1824.0,3.5038]
[1743430925544,3.2078,1824.2,1824.0,3.03765]
[1743430925847,3.2078,1824.4,1824.2,1.09653]
[1743430926040,1.0965,1824.3,1824.1,1.09658]
[1743430926343,1.09653,1824.3,1824.0,27.896]
[1743430926546,1.09657,1824.2,1824.0,27.90420771]
[1743430926843,1.09654,1824.3,1824.1,1.0966]
[1743430927049,1.0966,1824.2,1824.1,1.09661]
[1743430927245,1.0966,1824.2,1824.0,0.30420771]
[1743430927546,1.0966,1824.2,1824.1,1.09662]
[1743430927747,3.21600771,1824.4,1824.0,0.30420771]
[1743430927948,1.09653,1824.3,1824.2,1.09655]
[1743430928248,1.09656,1824.2,1824.1,1.09658]
[1743430928444,1.09662,1824.1,1824.0,0.30420771]
[1743430928947,2.49702,1824.1,1824.0,0.30420771]
[1743430929339,10.96702,1824.1,1824.0,7.71e-06]
[1743430929542,1.09695,1823.6,1823.3,1.3708]
[1743430929844,2.48848,1823.5,1823.3,1.3708]
[1743430930049,1.09718,1823.2,1822.7,5.95135]
[1743430930249,1.3915,1823.5,1822.9,5.95117]
[1743430930445,1.3915,1823.5,1823.4,1.09704]
[1743430930647,1.3915,1823.5,1823.0,4.25638]
[1743430930648,1.09714,1823.3,1823.1,1.09721]
[1743430930847,0.00820771,1823.4,1823.2,1.09716]
[1743430931151,1.09716,1823.2,1823.1,1.5132]
[1743430931447,1.09722,1823.1,1823.0,0.0054718]
[1743430931846,4.30502,1823.1,1823.0,0.0054718]
[1743430932242,5.69652,1823.1,1823.0,0.0054718]
[1743430933455,4.5993,1823.1,1823.0,0.0054718]
[1743430933653,5.69652,1823.1,1823.0,0.0054718]
[1743430933854,5.85819,1823.2,1823.0,1.1027618]
[1743430934047,4.761,1823.2,1823.1,1.09722]
[1743430934354,1.09722,1823.1,1823.0,0.0054718]
[1743430934556,2.59702,1823.1,1823.0,0.0054718]
[1743430935153,5.80482,1823.1,1823.0,0.0054718]
[1743430937256,5.97,1823.3,1823.0,0.0054718]
[1743430937453,7.06716,1823.3,1823.1,1.09719]
[1743430937757,7.06716,1823.3,1823.2,1.4429]
[1743430938057,1.09722,1823.1,1823.0,0.0054718]
[1743430938259,2.51272,1823.2,1823.0,1.1027118]
[1743430938551,2.51272,1823.2,1823.1,1.4429]
[1743430938756,5.72052,1823.2,1823.1,1.4429]
[1743430940158,3.2078,1823.2,1823.1,2.54012]